bitfinex-derivatives/quotes_ETHF0:USTF0_20250730
["timestamp","ask_amount","ask_price","bid_price","bid_amount"]
[1753898743720,0.52646,3799.1,3798.6,0.52653]
[1753898743925,3.2078,3799.5,3798.1,2.3909]
[1753898743926,2.3748,3799.0,3798.2,1.31647]
[1753898744221,1.4053,3799.0,3798.1,2.3909]
[1753898744425,1.6869,3798.9,3798.7,0.5265]
[1753898745322,0.6879,3799.0,3798.1,0.7268]
[1753898745323,3.2078,3798.8,3798.1,0.7268]
[1753898745527,1.21442,3798.7,3798.1,0.52659]
[1753898745717,2.3748,3797.9,3797.6,3.2078]
[1753898745917,2.3748,3797.7,3797.6,3.2078]
[1753898746117,0.52667,3797.6,3797.2,3.2078]
[1753898746418,2.3748,3797.1,3796.8,3.2078]
[1753898746621,0.52673,3797.2,3796.8,3.2078]
[1753898746622,0.6879,3797.0,3796.8,3.2078]
[1753898746816,45.6947,3797.6,3796.8,3.2078]
[1753898747125,44.53447,3797.6,3796.9,0.52677]
[1753898747425,1.6574,3797.1,3796.8,3.2078]
[1753898747620,0.7174,3796.9,3796.8,3.2078]
[1753898747816,0.52678,3796.8,3796.3,3.2078]
[1753898748026,0.6879,3797.1,3796.3,3.2078]
[1753898748027,1.4053,3797.1,3796.3,3.2078]
[1753898748224,2.3748,3796.4,3795.8,3.60296841]
[1753898748619,0.52685,3796.3,3795.8,3.60296841]
[1753898748925,3.2078,3796.6,3795.8,3.60296841]
[1753898748926,0.9695,3796.0,3795.8,3.60296841]
[1753898749123,2.3748,3795.9,3795.8,0.39516841]
[1753898751119,3.2078,3796.2,3795.8,0.39516841]
[1753898751318,4.8947,3796.2,3795.8,0.39516841]
[1753898751526,3.2078,3796.2,3796.1,2.91778]
[1753898751921,0.7174,3796.4,3796.2,0.52686]
[1753898752121,1.6869,3796.2,3795.8,0.39516841]
[1753898752324,1.6869,3796.1,3795.8,1.12196841]
[1753898752624,0.7174,3796.1,3795.9,1.2537]
[1753898752826,0.9695,3796.6,3796.3,2.21585]
[1753898753124,1.6869,3796.5,3796.3,1.25365]
[1753898753319,0.9695,3796.4,3796.3,0.52685]
[1753898753525,0.7174,3796.5,3796.3,0.52685]
[1753898753721,1.6869,3796.9,3796.0,3.2078]
[1753898753923,1.6869,3796.3,3796.1,0.52688]
[1753898754116,45.6947,3797.0,3796.2,2.3909]
[1753898754428,0.52691,3795.9,3795.8,0.39516841]
[1753898754729,2.3748,3795.8,3795.0,0.52702]
[1753898754923,2.90177,3795.5,3794.4,0.7268]
[1753898755118,40.8,3795.4,3795.0,0.52703]
[1753898755323,40.8,3795.4,3795.1,0.52701]
[1753898755522,40.8,3795.4,3794.4,0.7268]
[1753898755726,1.6869,3794.5,3794.4,0.52711]
[1753898755926,2.3748,3794.2,3794.1,0.52715]
[1753898756227,3.2078,3794.6,3794.5,0.52711]
[1753898756529,0.6879,3794.5,3794.4,0.52712]
[1753898756831,3.2078,3794.6,3794.4,1.25392]
[1753898757229,3.9252,3794.6,3794.4,1.25392]
[1753898757525,1.6869,3794.5,3794.4,0.52712]
[1753898757727,3.2078,3794.6,3794.5,0.7019]
[1753898758029,1.6869,3795.3,3794.7,0.7268]
[1753898758218,3.2078,3795.1,3794.6,0.9622]
[1753898758425,1.6869,3795.3,3794.2,0.7268]
[1753898758426,2.3748,3794.9,3794.8,0.52706]
[1753898758624,3.2078,3795.0,3794.8,0.52706]
[1753898758818,2.65374,3795.0,3794.9,2.3536]
[1753898759024,21.2959,3795.8,3795.7,0.52694]
[1753898759232,0.6969,3795.7,3794.9,5.5614]
[1753898759433,0.6969,3795.7,3794.9,2.3536]
[1753898759630,3.2078,3795.5,3795.0,0.52704]
[1753898759826,1.7068,3795.4,3794.5,1.31777]
[1753898760129,1.7068,3795.4,3794.4,0.6892]
[1753898760332,1.7068,3795.4,3795.3,0.52699]
[1753898760523,3.2078,3795.5,3795.3,0.52699]
[1753898760723,3.9047,3795.5,3795.3,0.52699]
[1753898760922,3.9047,3796.2,3796.1,0.52688]
[1753898761129,3.9047,3796.2,3796.0,0.52689]
[1753898761321,0.6969,3796.8,3796.2,1.31718]
[1753898761522,1.0099,3796.9,3796.2,1.31718]
[1753898761727,1.0099,3796.9,3796.1,2.3536]
[1753898761928,3.2078,3797.1,3796.9,0.52676]
[1753898762128,1.7068,3797.0,3796.8,0.52678]
[1753898762432,1.7068,3796.9,3796.8,0.52678]
[1753898762627,1.7068,3796.9,3796.7,0.52679]
[1753898762833,2.4586,3796.8,3796.1,0.52688]
[1753898763130,2.4586,3796.4,3796.3,0.52686]
[1753898763331,23.7618,3796.7,3795.6,1.6441]
[1753898763537,0.7518,3796.0,3795.8,0.52692]
[1753898763847,2.66985,3796.3,3796.2,2.88047]
[1753898764029,0.6969,3797.3,3796.7,0.9549]
[1753898764228,23.7508,3797.6,3797.3,0.52672]
[1753898764429,24.97438,3797.6,3796.8,1.31697]
[1753898764732,1.4487,3797.5,3797.2,0.52673]
[1753898764926,0.6969,3797.4,3797.2,0.52673]
[1753898765240,1.7068,3797.3,3797.1,0.52673]
[1753898765439,0.52669,3797.5,3797.1,0.52673]
[1753898765624,2.23352,3797.3,3797.1,0.6892]
[1753898765929,3.2078,3797.5,3796.7,2.2719]
[1753898765930,1.7068,3797.4,3796.7,2.2719]
[1753898766132,1.7068,3796.7,3796.1,0.9549]
[1753898766334,3.2078,3796.6,3795.8,1.31732]
[1753898766632,20.511,3796.9,3796.5,0.52683]
[1753898766833,20.511,3796.9,3795.8,2.27222]
[1753898766834,2.23356,3797.0,3796.6,0.52681]
[1753898767025,23.7198,3797.1,3796.3,1.6441]
[1753898767233,1.0099,3796.7,3795.8,1.31733]
[1753898767530,1.7068,3796.7,3796.5,0.52682]
[1753898767731,22.9616,3797.0,3796.6,0.52681]
[1753898767933,3.2078,3797.1,3797.0,0.52676]
[1753898768228,0.38,3797.7,3797.6,2.3536]
[1753898772733,0.52658,3798.3,3798.0,0.52662]
[1753898772939,0.52657,3798.4,3798.2,0.5266]
[1753898773141,0.52657,3798.4,3798.2,2.0227]
[1753898773436,1.53655,3797.9,3797.6,1.21587]
[1753898773631,4.9146,3797.8,3796.7,3.2078]
[1753898773831,1.31675,3797.5,3796.7,3.2078]
[1753898774033,0.6969,3796.9,3796.7,3.2078]
[1753898774438,0.6969,3796.9,3796.7,3.897]
[1753898774639,0.6969,3796.9,3796.7,5.37869]
[1753898774842,0.52678,3797.0,3796.8,1.3335]
[1753898775041,0.52678,3797.0,3796.8,2.0227]
[1753898775342,1.7617,3797.2,3796.7,3.2078]
[1753898775343,0.52679,3796.8,3796.7,3.2078]
[1753898775639,2.98539,3796.8,3796.7,3.2078]
[1753898775843,2.98547,3796.2,3796.1,3.2078]
[1753898776342,0.52684,3796.5,3796.2,0.52687]
[1753898776545,0.52686,3796.3,3796.2,2.0359]
[1753898776743,0.52686,3796.3,3796.2,0.6892]
[1753898776938,40.8,3796.6,3796.4,2.56275]
[1753898777242,1.2786,3796.8,3796.4,2.56275]
[1753898777243,0.52679,3796.8,3796.6,2.0359]
[1753898777443,0.52678,3796.9,3796.7,1.6441]
[1753898777639,1.0099,3796.8,3796.0,0.3918]
[1753898777938,1.31705,3796.6,3796.0,0.3918]
[1753898778151,1.7068,3796.5,3795.8,1.35006841]
[1753898778348,1.7068,3796.5,3795.8,0.39516841]
[1753898778349,0.52685,3796.4,3795.8,0.39516841]
[1753898778643,0.52688,3796.2,3796.0,0.9549]
[1753898778854,0.6969,3796.1,3795.9,0.52692]
[1753898779143,0.5269,3796.0,3795.9,0.6892]
[1753898779339,1.7068,3795.9,3795.8,0.39516841]
[1753898780341,2.4586,3795.9,3795.8,0.39516841]
[1753898780542,0.52693,3795.8,3795.3,3.2078]
[1753898780847,2.4586,3795.7,3795.6,0.52694]
[1753898781141,0.6969,3796.3,3796.1,0.52688]
[1753898781345,20.403,3797.0,3795.7,1.31736]
[1753898781346,0.7518,3796.8,3796.2,1.31719]
[1753898781536,3.2078,3797.5,3797.4,2.17081]
[1753898781740,0.38,3797.7,3797.6,1.87338]
[1753898782045,0.38,3797.7,3797.6,2.56258]
[1753898782640,0.59071476,3797.7,3797.6,0.52668]
[1753898782842,2.4586,3797.6,3797.4,0.5267]
[1753898783047,2.4586,3797.4,3797.3,0.52671]
[1753898783343,2.4586,3796.9,3796.6,0.52681]
[1753898783547,2.4586,3796.7,3796.4,0.52683]
[1753898783744,1.7068,3796.5,3796.3,0.52686]
[1753898783946,0.6969,3797.1,3796.3,1.3467]
[1753898784251,0.6969,3797.0,3796.9,0.52676]
[1753898784749,20.752,3797.7,3797.5,0.52669]
[1753898784947,3.2078,3798.1,3798.0,0.52662]
[1753898785250,0.6969,3798.5,3798.4,0.52657]
[1753898785448,2.4586,3798.5,3798.4,0.52657]
[1753898785648,3.2078,3798.6,3798.4,0.52657]
[1753898785849,0.21084105,3798.5,3798.4,0.52657]
[1753898786048,0.90774105,3798.5,3798.4,0.52657]
[1753898786946,0.21084105,3798.5,3798.4,0.52657]
[1753898787256,1.15737186,3798.5,3798.4,0.52657]
[1753898787950,2.4586,3798.4,3797.8,3.2078]
[1753898788151,1.7617,3798.2,3797.9,0.52664]
[1753898788347,2.4586,3798.0,3797.9,0.52664]
[1753898788548,2.66944105,3798.0,3797.9,0.52664]
[1753898788745,0.9641,3798.5,3798.4,0.52657]
[1753898788952,20.77101798,3798.5,3798.4,0.52657]
[1753898789247,0.46101798,3798.5,3798.4,2.63137]
[1753898790342,0.21108364,3798.5,3798.4,2.63137]
[1753898790547,3.2078,3799.7,3799.6,0.5264]
[1753898790852,0.7148,3799.6,3799.3,0.52644]
[1753898791043,2.3989,3799.4,3799.3,0.52644]
[1753898791246,3.09504997,3799.4,3799.3,0.52644]
[1753898791642,2.38024997,3799.4,3799.1,0.52647]
[1753898791847,2.3989,3799.2,3798.8,3.7343]
[1753898792050,2.3989,3799.0,3798.6,0.52653]
[1753898792250,2.3989,3799.1,3798.6,0.52653]
[1753898792450,0.69635397,3799.0,3798.6,0.52653]
[1753898792651,0.7148,3798.8,3798.6,0.52653]
[1753898792853,1.66040399,3798.7,3798.4,0.52656]
[1753898793056,2.37520399,3798.6,3798.4,0.52656]
[1753898793348,0.69630399,3798.5,3798.4,0.52656]
[1753898793755,0.69630399,3798.5,3798.4,2.23746]
[1753898794556,0.7148,3798.6,3798.4,2.23746]
[1753898795253,1.6841,3798.4,3797.3,0.9838]
[1753898795459,3.2078,3798.2,3797.9,1.7109]
[1753898795657,3.2078,3798.2,3798.0,1.7109]
[1753898795847,3.2078,3798.2,3798.0,2.23752]
[1753898796048,40.8,3798.5,3798.4,0.9838]
[1753898796248,0.69693394,3798.5,3798.4,2.63137]
[1753898796454,3.2078,3799.1,3799.0,2.23739]
[1753898796756,3.90477674,3799.1,3799.0,2.63129]
[1753898797155,0.69697674,3799.1,3799.0,2.63129]
[1753898797357,0.69697674,3799.1,3799.0,0.7271]
[1753898797654,1.6789,3798.8,3798.5,0.52654]
[1753898797859,1.93830674,3798.7,3798.3,2.23748]
[1753898798156,0.69697674,3798.6,3798.5,2.63134]
[1753898798362,4.61403642,3799.7,3799.4,1.64743]
[1753898798555,0.69715957,3799.6,3799.5,1.7109]
[1753898799165,0.69715957,3799.6,3799.5,2.1048]
[1753898800252,0.5264,3799.7,3799.5,1.7109]
[1753898800455,2.3989,3799.7,3798.9,1.25359]
[1753898800657,1.6789,3799.2,3799.0,0.52647]
[1753898800855,0.7148,3799.2,3799.0,2.23737]
[1753898801057,3.9278,3799.8,3798.6,3.2078]
[1753898801058,0.52643,3799.4,3799.2,0.52645]
[1753898801256,0.7148,3799.4,3799.2,0.52645]
[1753898801459,0.69591436,3799.3,3799.2,0.9838]
[1753898801658,0.69591436,3799.3,3799.2,1.51026]
[1753898801864,1.41071436,3799.3,3799.2,1.51026]
[1753898802366,0.7148,3799.3,3799.2,1.51026]
[1753898802758,0.918028,3799.3,3799.2,0.9838]
[1753898802959,1.24124,3799.3,3799.2,0.9838]
[1753898803253,0.52642,3799.5,3799.3,0.52643]
[1753898803460,0.52642,3799.5,3799.4,1.7109]
[1753898803461,20.71442,3799.5,3799.4,1.7109]
[1753898803963,0.5265,3798.9,3798.6,0.9838]
[1753898804163,0.52652,3798.8,3798.6,1.7109]
[1753898804369,1.24132,3798.8,3798.6,1.7109]
[1753898804663,3.2078,3799.1,3798.7,1.121]
[1753898804867,3.2078,3799.1,3799.0,1.121]
[1753898805061,5.6067,3799.1,3798.5,3.6017]
[1753898805256,3.2078,3799.1,3798.6,0.52653]
[1753898805463,0.7148,3798.7,3798.5,1.51034]
[1753898805767,0.52657,3798.4,3798.3,1.3777]
[1753898805968,0.52657,3798.4,3798.3,1.121]
[1753898806160,2.3989,3799.0,3798.3,2.1048]
[1753898806356,23.18817,3799.5,3798.6,0.7271]
[1753898806561,0.52648,3799.1,3799.0,2.1048]
[1753898806862,0.52656,3798.5,3798.4,0.9838]
[1753898807062,0.52656,3798.5,3798.4,1.7109]
[1753898807367,0.52653,3798.7,3798.5,2.23744]
[1753898807570,0.52655,3798.6,3798.5,1.7109]
[1753898807764,0.52657,3798.4,3798.2,0.52658]
[1753898808066,0.7148,3798.6,3798.4,0.52657]
[1753898808263,0.52655,3798.5,3798.4,0.92046]
[1753898808762,0.52655,3798.5,3798.1,3.2078]
[1753898808763,0.52659,3798.2,3798.1,3.2078]
[1753898809062,2.92549,3798.2,3798.1,3.2078]
[1753898809262,1.24145,3797.8,3797.7,3.2078]
[1753898809461,0.52664,3797.9,3797.7,4.71826]
[1753898809660,0.52664,3797.9,3797.7,3.9349]
[1753898809870,0.52664,3797.9,3797.8,0.9838]
[1753898810364,1.31636,3798.6,3798.3,0.9838]
[1753898810563,1.31636,3798.6,3797.7,5.55330777]
[1753898810564,0.7148,3798.4,3798.1,0.9838]
[1753898810760,1.6789,3797.8,3797.7,3.2078]
[1753898811164,2.3989,3797.8,3797.7,3.2078]
[1753898811465,3.73439,3798.3,3798.0,0.52661]
[1753898811671,3.73439,3798.3,3798.1,0.7271]
[1753898811965,0.52658,3798.4,3798.2,0.7271]
[1753898812171,0.52658,3798.4,3798.2,1.7109]
[1753898812464,1.24138,3798.4,3798.2,2.23749]
[1753898812671,0.72,3798.8,3798.7,1.7109]
[1753898812672,0.52652,3798.8,3798.7,1.7109]
[1753898813064,0.7148,3798.5,3798.3,2.23747]
[1753898813368,0.52652,3798.8,3798.6,0.7271]
[1753898813568,1.24132,3798.8,3798.6,0.7271]
[1753898813759,1.24132,3798.8,3798.6,1.7109]
[1753898814072,0.52653,3798.7,3798.4,0.52657]
[1753898814369,0.7148,3798.9,3798.7,0.52652]
[1753898814370,0.52651,3798.9,3798.7,0.52652]
[1753898814569,0.52651,3798.9,3798.8,1.7109]
[1753898815365,0.52648,3799.1,3798.8,1.7109]
[1753898815573,0.52646,3799.2,3799.1,0.7271]
[1753898815768,1.24126,3799.2,3799.1,1.7109]
[1753898815974,0.52651,3798.8,3798.7,0.9838]
[1753898816374,1.24134,3798.7,3798.4,2.23746]
[1753898816766,1.24134,3798.7,3798.4,1.25366]
[1753898816966,0.7148,3798.7,3798.5,0.52654]
[1753898817172,0.52654,3798.6,3798.3,2.1048]
[1753898817472,0.52654,3798.6,3798.5,1.7109]
[1753898817671,0.52658,3798.4,3798.2,4.9187]
[1753898817872,1.24138,3798.3,3797.7,0.9838]
[1753898818067,1.24138,3798.3,3797.5,3.6017]
[1753898818068,0.52661,3798.1,3797.8,0.52665]
[1753898818269,1.24141,3798.1,3797.9,1.7109]
[1753898818567,2.4109,3797.7,3797.5,3.2078]
[1753898818773,1.6959,3797.6,3797.5,3.2078]
[1753898818961,1.6959,3797.6,3797.4,2.34550777]
[1753898818962,0.52672,3797.4,3797.2,2.34550777]
[1753898819166,2.93763,3797.2,3797.1,5.55330777]
[1753898819366,2.93763,3797.2,3797.0,2.34550777]
[1753898819570,0.7243,3797.1,3797.0,3.25700777]
[1753898819774,0.715,3797.6,3797.0,1.43825]
[1753898819976,0.715,3797.6,3797.0,3.78375777]
[1753898820176,3.2078,3797.7,3797.4,0.9115]
[1753898820373,4.45876,3797.7,3797.6,0.9115]
[1753898820572,0.52671,3797.5,3797.2,0.6887]
[1753898820775,0.52672,3797.4,3797.3,1.9699]
[1753898821079,0.52676,3797.1,3797.0,0.9115]
[1753898821372,2.4109,3797.6,3797.0,0.9115]
[1753898821573,3.73448,3797.7,3797.5,1.0584]
[1753898821770,3.73446,3797.7,3797.6,1.6002]
[1753898821967,3.9321,3797.7,3797.6,1.6002]
[1753898822174,3.9321,3797.7,3796.1,3.23929704]
[1753898822175,8.2078,3797.7,3796.1,3.23929704]
[1753898822475,8.2078,3797.7,3795.8,3.60296841]
[1753898822476,0.52689,3796.1,3795.8,2.74067618]
[1753898822680,0.7243,3795.1,3794.9,3.2078]
[1753898822864,0.7243,3795.1,3794.9,3.73485]
[1753898823170,0.52696,3795.6,3795.4,1.6002]
[1753898823568,0.7243,3795.6,3795.4,1.6002]
[1753898823765,24.62499,3796.1,3795.7,1.6002]
[1753898823973,0.7243,3796.0,3795.7,1.6002]
[1753898824170,0.7243,3796.6,3796.3,0.9115]
[1753898824374,1.4393,3796.4,3796.2,0.52686]
[1753898824571,1.4393,3796.4,3796.1,2.12708]
[1753898824769,1.6866,3795.8,3795.7,3.2078]
[1753898825075,0.7243,3795.2,3794.9,1.6002]
[1753898825277,0.7243,3795.2,3795.0,0.52704]
[1753898825465,0.7243,3795.1,3794.8,4.10456]
[1753898825672,0.715,3795.3,3794.8,3.73486]
[1753898825876,0.7243,3795.2,3794.9,0.52705]
[1753898826076,0.7243,3795.7,3795.4,1.43848]
[1753898826375,0.7243,3795.7,3795.4,2.12718]
[1753898826877,0.9716,3796.2,3795.9,0.52691]
[1753898827066,0.7243,3796.6,3796.4,0.52684]
[1753898827267,0.7243,3796.7,3796.5,1.6002]
[1753898827580,58.09,3796.8,3796.5,2.12702]
[1753898827879,0.7243,3796.6,3796.5,2.12702]
[1753898828070,0.7243,3796.6,3796.4,0.3697]
[1753898828071,1.6866,3797.6,3796.8,2.00568]
[1753898828277,1.6866,3797.6,3796.9,0.9115]
[1753898828585,0.7243,3797.5,3797.4,0.5267]
[1753898829075,2.21328,3797.6,3797.2,0.52673]
[1753898829275,0.7243,3797.4,3797.2,0.52673]
[1753898829478,0.7243,3797.4,3797.2,1.43823]
[1753898829776,1.6959,3797.5,3796.8,3.8965]
[1753898829972,0.7243,3797.4,3796.9,0.52676]
[1753898830281,1.6959,3797.0,3796.7,0.5268]
[1753898830472,1.6959,3796.6,3795.8,0.6887]
[1753898830670,3.2078,3795.9,3795.6,0.52696]
[1753898830872,0.7243,3795.7,3795.5,1.43846]
[1753898831174,0.7243,3795.7,3795.5,2.12716]
[1753898831478,1.6866,3796.3,3796.1,0.52688]
[1753898831680,20.168,3796.3,3796.2,1.6002]
[1753898831875,3.9228,3796.8,3796.6,0.52681]
[1753898832079,23.3758,3796.8,3796.7,0.5268]
[1753898832274,1.6866,3796.7,3796.4,0.6887]
[1753898832473,1.6866,3796.7,3796.6,0.52682]
[1753898832677,0.7243,3796.7,3796.1,0.9115]
[1753898832974,0.9716,3796.3,3796.1,0.52687]
[1753898833179,0.52679,3796.8,3795.9,1.6002]
[1753898833681,0.7243,3796.5,3795.9,1.6002]
[1753898833878,1.25114,3796.5,3795.9,1.21561]
[1753898834074,0.52686,3796.3,3795.9,0.6887]
[1753898834280,3.73469,3796.1,3795.2,1.6002]
[1753898834481,20.167,3796.3,3795.2,1.6002]
[1753898834482,1.4393,3796.0,3795.9,0.52691]
[1753898834687,1.4393,3796.0,3795.8,0.52692]
[1753898835385,0.7243,3795.9,3795.8,0.52692]
[1753898835979,0.7243,3795.9,3795.8,1.43842]
[1753898837085,0.7243,3796.2,3796.1,0.52688]
[1753898837278,1.6866,3796.2,3796.0,0.52689]
[1753898837478,1.6959,3796.1,3796.0,0.52689]
[1753898837885,0.7243,3796.1,3796.0,2.12709]
[1753898838897,20.166,3796.4,3796.3,2.12706]
[1753898839985,20.8903,3796.4,3796.3,2.12706]
[1753898840185,20.8903,3796.4,3796.3,0.52686]
[1753898840880,20.8903,3796.4,3796.3,1.43836]
[1753898841280,22.5749,3796.4,3796.3,0.52686]
[1753898841681,20.8883,3796.4,3796.3,1.43836]
[1753898842083,20.8883,3796.4,3796.3,0.52686]
[1753898842286,3.2078,3796.6,3796.5,2.12703]
[1753898842490,0.7243,3797.2,3796.7,1.9699]
[1753898842785,21.8579,3797.1,3797.0,0.52676]
[1753898842994,22.5729,3797.1,3797.0,0.52676]
[1753898843289,22.5729,3797.1,3796.7,1.9699]
[1753898843290,41.1438,3797.9,3797.2,1.31684]
[1753898843584,1.1043,3797.7,3797.6,0.52668]
[1753898843788,1.1043,3797.7,3797.5,2.12689]
[1753898845988,1.6959,3796.5,3796.4,0.52684]
[1753898846893,0.52684,3796.5,3796.0,0.6887]
[1753898847094,20.16,3796.6,3796.3,0.52685]
[1753898847293,0.715,3796.5,3796.4,0.52683]
[1753898847485,20.16,3796.6,3796.4,0.52683]
[1753898847785,20.16,3796.6,3796.5,0.6887]
[1753898848185,3.2078,3796.8,3796.6,1.43832]
[1753898848385,3.2078,3796.8,3796.2,1.31717]
[1753898848386,21.1266,3796.7,3796.0,4.4785]
[1753898848587,21.1266,3796.7,3796.0,3.73469]
[1753898848588,0.52686,3796.3,3796.0,3.73469]
[1753898848788,1.4316,3796.1,3796.0,3.73469]
[1753898848986,22.5236,3796.1,3796.0,3.73469]
[1753898849189,0.7374,3796.7,3796.5,0.52682]
[1753898849487,0.7374,3796.7,3796.0,4.85]
[1753898849488,20.8482,3796.6,3796.0,4.85]
[1753898849692,0.6942,3796.6,3796.5,1.6422]
[1753898849989,21.7852,3796.6,3796.5,0.52683]
[1753898850193,20.154,3796.6,3796.5,2.16903]
[1753898850384,20.154,3796.6,3796.5,2.52853]
[1753898851093,20.154,3796.6,3796.5,2.16903]
[1753898851993,3.2078,3796.8,3796.7,2.169]
[1753898852185,0.5268,3796.7,3796.5,0.52682]
[1753898852494,0.7374,3796.5,3796.0,3.2078]
[1753898852685,1.6312,3796.3,3796.1,0.52689]
[1753898852889,0.6942,3796.2,3796.1,0.52689]
[1753898853289,0.6942,3796.2,3796.1,1.26059]
[1753898853489,0.6942,3796.2,3796.1,2.16909]
[1753898853701,1.46394,3795.8,3795.6,3.2078]
[1753898853903,22.5166,3795.7,3795.6,3.2078]
[1753898854089,0.6942,3795.5,3795.4,0.52697]
[1753898854290,20.8422,3795.7,3795.6,1.26066]
[1753898854699,20.148,3795.7,3795.6,0.3595]
[1753898854893,3.2078,3795.8,3795.7,0.52694]
[1753898855090,43.5174,3796.5,3796.3,0.52685]
[1753898855290,20.147,3796.4,3796.3,0.52685]
[1753898855490,20.147,3796.4,3796.3,0.9085]
[1753898855695,20.8412,3796.4,3796.3,0.9085]
[1753898855896,20.8412,3796.4,3796.3,1.6422]
[1753898856496,20.147,3796.4,3796.3,2.0017]
[1753898856695,21.084,3796.4,3795.9,1.26061]
[1753898856895,3.2078,3796.0,3795.8,0.52692]
[1753898857092,3.2078,3796.0,3795.1,4.46852]
[1753898857093,0.6942,3795.3,3795.1,4.46852]
[1753898857292,1.6312,3795.2,3795.1,4.46852]
[1753898857496,1.6312,3795.2,3795.1,3.9415]
[1753898857705,1.6312,3795.2,3795.1,3.2078]
[1753898857995,20.144,3795.4,3795.2,0.52701]
[1753898858190,20.144,3795.4,3795.3,0.7337]
[1753898858394,20.144,3795.4,3795.3,1.6422]
[1753898859189,20.144,3795.4,3795.3,2.0017]
[1753898860003,3.2078,3796.0,3795.9,1.26061]
[1753898860300,3.2078,3796.0,3795.9,2.52861]
[1753898860492,37.941,3796.5,3796.0,0.5269]
[1753898860493,20.14,3796.2,3796.0,0.5269]
[1753898860692,0.6942,3796.1,3796.0,0.5269]
[1753898860896,1.6312,3796.0,3795.9,0.5269]
[1753898861098,4.47209,3796.1,3795.1,3.2078]
[1753898861099,0.52701,3795.3,3795.1,4.1163]
[1753898861304,1.6312,3795.2,3795.1,3.2078]
[1753898861799,0.6942,3795.2,3795.1,4.85]
[1753898862191,20.14,3795.3,3795.2,0.52701]
[1753898862404,20.14,3795.3,3795.2,2.52871]
[1753898862998,1.6312,3795.2,3794.7,3.9415]
[1753898863200,0.7374,3795.1,3795.0,0.52703]
[1753898863502,20.14,3795.3,3795.2,2.52871]
[1753898864099,3.2078,3795.6,3795.5,2.52867]
[1753898865701,20.137,3795.8,3795.7,0.52694]
[1753898865904,20.137,3795.8,3795.7,2.52864]
[1753898866606,20.8312,3795.8,3795.7,0.52694]
[1753898866815,21.7682,3795.8,3795.7,1.26064]
[1753898867304,21.7682,3795.8,3795.7,0.7337]
[1753898867505,0.52694,3795.7,3795.6,0.52695]
[1753898867701,1.6312,3795.7,3795.6,0.52695]
[1753898868212,2.15815,3795.6,3795.5,0.52696]
[1753898868406,2.15815,3795.6,3795.1,3.2078]
[1753898868407,0.52701,3795.2,3795.1,3.2078]
[1753898868709,1.6312,3795.2,3795.1,3.2078]
[1753898868931,2.15822,3795.2,3794.9,0.52704]
[1753898869109,2.15823,3795.1,3794.9,1.26074]
[1753898869309,1.6312,3795.0,3794.9,0.52704]
[1753898869812,0.6942,3794.8,3794.7,4.46857]
[1753898870113,1.6312,3794.8,3794.7,4.46857]
[1753898870315,1.6312,3794.8,3794.7,3.9415]
[1753898870508,1.46407,3794.8,3794.5,0.7337]
[1753898870810,0.6942,3795.2,3795.1,1.26072]
[1753898871010,20.8202,3795.2,3795.1,1.6422]
[1753898871206,0.52702,3795.1,3794.9,0.52704]
[1753898871410,1.6312,3794.9,3794.8,0.7337]
[1753898871606,20.126,3795.2,3794.7,1.6422]
[1753898871815,20.126,3795.2,3794.6,4.52552]
[1753898872209,20.126,3795.2,3795.0,0.52703]
[1753898872409,1.6312,3795.1,3795.0,1.26073]
[1753898872611,1.6312,3795.1,3795.0,0.7337]
[1753898872811,1.6312,3794.8,3794.6,3.73488]
[1753898873116,0.6942,3794.4,3794.3,0.52712]
[1753898873311,20.8172,3794.8,3794.7,2.16928]
[1753898873514,0.937,3795.2,3795.0,0.52702]
[1753898873714,1.6312,3795.2,3795.1,0.7337]
[1753898873911,21.7522,3795.2,3795.1,0.7337]
[1753898874114,20.8152,3795.2,3795.1,0.7337]
[1753898874313,20.121,3795.2,3795.1,2.0017]
[1753898874909,3.2078,3795.3,3795.2,0.52701]
[1753898875118,24.023,3795.3,3795.2,2.16921]
[1753898876015,0.52701,3795.2,3794.8,0.52706]
[1753898876213,1.6312,3795.0,3794.8,0.52706]
[1753898876421,0.7374,3795.1,3794.9,0.52704]
[1753898876621,0.52706,3794.9,3794.6,0.88659]
[1753898876919,0.6942,3794.9,3794.8,0.52705]
[1753898877120,0.6942,3794.9,3794.8,2.16925]
[1753898877314,1.6312,3794.9,3794.8,1.26075]
[1753898878011,1.6312,3794.9,3794.8,0.7337]
[1753898878211,3.2078,3795.7,3795.0,1.0932]
[1753898878414,2.15815,3795.6,3795.0,0.3595]
[1753898878619,20.112,3795.5,3795.3,0.52699]
[1753898878918,1.6699,3795.4,3795.0,2.0017]
[1753898879120,2.89962,3795.2,3795.0,0.6836]
[1753898879320,2.89962,3795.2,3794.9,0.52704]
[1753898879321,1.6699,3795.0,3794.9,0.52704]
[1753898879517,0.9562,3795.4,3795.2,0.52699]
[1753898879722,20.111,3795.5,3795.4,0.52697]
[1753898879912,3.2078,3796.8,3795.7,0.9681]
[1753898880112,3.2078,3797.2,3797.0,0.52676]
[1753898880429,1.40623642,3798.3,3797.3,2.6186]
[1753898880718,0.43108872,3798.2,3798.1,1.82841]
[1753898880921,20.109,3798.9,3798.6,0.52653]
[1753898881111,0.4311429,3798.8,3798.7,1.6517]
[1753898881518,0.4311429,3798.8,3797.2,1.31681]